bitfinex/quotes_ETHUSD_20251031
["timestamp","ask_amount","ask_price","bid_price","bid_amount"]
[1761919688143,2.57939257,3876.9,3875.6,4.35492366]
[1761919688344,2.57933011,3877.0,3875.6,4.35492366]
[1761919688578,1.39968,3877.0,3875.6,4.38072611]
[1761919688878,1.52908,3877.1,3875.6,4.35492366]
[1761919689171,0.405504,3877.0,3875.6,4.35492366]
[1761919689383,0.40464541,3876.4,3875.6,4.35492366]
[1761919689539,0.40464541,3876.4,3875.6,4.38072611]
[1761919689743,0.410504,3876.7,3875.6,4.35492366]
[1761919690063,0.410504,3876.7,3875.6,3.88052366]
[1761919690235,0.405504,3876.5,3875.6,3.88052366]
[1761919690431,2.98515325,3876.5,3875.6,4.35492366]
[1761919690658,0.405504,3876.6,3875.6,3.88052366]
[1761919690859,2.58452342,3876.7,3875.6,4.35492366]
[1761919691072,2.57958396,3876.6,3875.6,4.35492366]
[1761919691275,0.005,3876.7,3875.6,4.38072611]
[1761919692357,0.005,3876.7,3875.6,4.35492366]
[1761919692571,0.005,3876.7,3876.6,2.57958004]
[1761919692759,0.005,3876.7,3876.6,0.6698]
[1761919692976,0.3582,3876.7,3876.1,0.1858]
[1761919693175,0.005,3876.7,3876.6,2.57958004]
[1761919693398,0.0042,3876.7,3876.6,2.57958004]
[1761919693548,0.0042,3876.7,3876.1,0.6602]
[1761919693868,0.0042,3876.7,3876.2,2.57983673]
[1761919694061,0.0042,3876.7,3875.6,0.6602]
[1761919694062,0.0042,3876.7,3875.7,0.4744]
[1761919694316,0.0042,3876.7,3876.5,2.57964467]
[1761919694519,0.0042,3876.7,3875.8,1.42548112]
[1761919694720,0.0042,3876.7,3876.6,2.57958004]
[1761919694925,0.0042,3876.7,3876.6,2.60537584]
[1761919695086,0.3321,3876.7,3876.6,0.0257958]
[1761919695282,0.3321,3876.7,3876.3,2.57977002]
[1761919695492,0.3321,3876.7,3875.0,6.62139633]
[1761919695493,0.0022,3876.0,3875.0,0.6602]
[1761919695693,0.1288,3876.0,3875.3,0.1288]
[1761919696161,0.1948,3875.4,3874.4,0.1858]
[1761919696356,0.0754,3875.9,3874.4,0.1858]
[1761919696357,0.1288,3875.3,3875.1,2.58057285]
[1761919696654,0.1288,3875.3,3874.6,0.4764]
[1761919696995,0.1288,3875.5,3874.9,2.70951033]
[1761919697194,0.1288,3875.2,3874.6,0.002]
[1761919697436,0.3532,3875.8,3874.6,0.002]
[1761919697437,0.3516,3875.8,3874.6,0.002]
[1761919697595,2.58049914,3875.3,3874.6,0.002]
[1761919697795,0.405504,3875.6,3874.6,0.02780911]
[1761919698011,0.405504,3875.4,3874.6,0.002]
[1761919698553,0.3382,3874.7,3874.6,0.002]
[1761919698714,0.3532,3875.3,3874.6,2.58286267]
[1761919698914,4.052169,3875.6,3874.7,0.02580844]
[1761919699231,0.405504,3875.5,3874.8,2.58077388]
[1761919699413,3.866477,3875.4,3874.7,2.60663645]
[1761919699614,0.3368,3874.8,3874.6,0.002]
[1761919699925,0.1468,3874.7,3874.6,0.002]
[1761919700316,0.1434,3874.7,3874.6,0.002]
[1761919700516,0.405504,3875.8,3874.6,0.4962]
[1761919700754,2.98567327,3875.8,3874.8,2.58077377]
[1761919701052,2.98567327,3875.8,3874.9,2.60650507]
[1761919701053,0.405504,3875.8,3874.9,2.60650507]
[1761919701215,0.0754,3875.9,3875.4,2.58032234]
[1761919701553,0.0754,3875.9,3875.2,2.58045223]
[1761919701789,0.0754,3875.9,3875.3,2.58038388]
[1761919701931,0.0754,3875.9,3875.7,2.5801775]
[1761919702127,0.001,3876.5,3875.8,0.02580112]
[1761919702327,0.001,3876.5,3875.8,2.58011249]
[1761919702669,0.001,3876.5,3875.1,2.77132493]
[1761919702670,0.001,3876.5,3876.2,2.5797915]
[1761919702818,0.001,3876.5,3876.3,2.57971763]
[1761919703023,0.001,3876.5,3876.1,0.02579912]
[1761919703338,0.001,3876.5,3875.7,0.4622]
[1761919703515,0.001,3876.5,3875.4,2.58033282]
[1761919703829,0.001,3876.5,3875.7,2.58016462]
[1761919704026,0.001,3876.5,3875.5,0.25803328]
[1761919704228,0.001,3876.5,3874.8,2.58077836]
[1761919704229,0.3532,3876.4,3874.8,2.58077836]
[1761919704427,0.001,3876.5,3875.2,0.48800511]
[1761919704751,0.001,3876.5,3875.9,2.57998801]
[1761919705052,0.001,3876.5,3876.0,2.57995462]
[1761919705214,0.001,3876.5,3876.2,2.57980811]
[1761919705418,0.001,3876.5,3875.3,3.04258114]
[1761919705419,0.001,3876.5,3876.3,0.02579779]
[1761919705643,0.001,3876.5,3876.2,2.57982452]
[1761919705839,0.001,3876.5,3876.1,0.21659912]
[1761919706045,0.1948,3876.2,3875.0,0.4622]
[1761919706274,0.1948,3876.2,3875.8,2.58007156]
[1761919706654,0.0754,3875.9,3875.6,2.58018264]
[1761919706856,0.1948,3876.2,3875.7,2.58017606]
[1761919707065,2.57972245,3876.4,3875.7,2.58017606]
[1761919707280,0.1288,3875.7,3875.1,0.653]
[1761919707480,0.1288,3875.7,3875.5,2.58024871]
[1761919707777,0.1288,3875.7,3875.1,0.1908]
[1761919708077,0.1288,3875.7,3875.5,2.58026838]
[1761919708241,0.1288,3875.7,3875.6,2.58024563]
[1761919708676,0.1288,3875.7,3875.1,0.48083308]
[1761919709043,0.0754,3875.9,3875.7,2.5801251]
[1761919709248,0.406504,3876.5,3875.9,2.58002889]
[1761919709479,2.98615644,3876.5,3875.1,0.94303308]
[1761919709683,2.98615644,3876.5,3875.1,0.653]
[1761919709975,0.406504,3876.5,3875.7,2.58017288]
[1761919710190,2.57999167,3876.0,3875.2,0.02580511]
[1761919710388,0.405504,3876.2,3875.2,0.02580511]
[1761919710589,0.001,3876.5,3875.3,0.48800445]
[1761919710804,0.001,3876.5,3875.4,0.32592705]
[1761919710960,0.001,3876.5,3876.1,2.57991279]
[1761919711153,0.001,3876.5,3875.7,2.58012335]
[1761919711373,2.93388853,3876.5,3875.4,0.32592705]
[1761919711587,2.93388853,3876.5,3874.9,0.4622]
[1761919711588,0.3542,3876.5,3875.5,0.02580312]
[1761919711794,0.3542,3876.5,3876.0,2.57997538]
[1761919711992,0.001,3876.5,3876.0,2.57997538]
[1761919712155,0.001,3876.5,3875.4,2.58032768]
[1761919712352,0.001,3876.5,3876.1,2.5799053]
[1761919712589,0.001,3876.5,3875.5,2.58031221]
[1761919712590,0.001,3876.5,3876.2,2.57984096]
[1761919712892,0.001,3876.5,3876.1,2.57990191]
[1761919713466,0.001,3876.5,3875.6,0.4622]
[1761919713661,0.001,3876.5,3876.3,2.57975956]
[1761919713862,0.001,3876.5,3876.4,2.60551026]
[1761919714065,0.001,3876.5,3876.4,3.61824074]
[1761919714264,0.001,3876.5,3876.4,4.08044074]
[1761919714497,0.001,3876.5,3876.4,3.59244361]
[1761919714865,0.001,3876.5,3876.4,4.05464361]
[1761919715301,0.001,3876.5,3876.4,4.08044074]
[1761919715673,0.001,3876.5,3876.4,2.57971313]
[1761919715900,0.1958,3876.5,3876.2,2.57983637]
[1761919716219,0.1958,3876.5,3876.3,2.57971745]
[1761919716514,0.001,3876.5,3876.4,3.26471313]
[1761919717070,0.001,3876.5,3876.4,3.29051026]
[1761919717270,0.001,3876.5,3876.4,4.3139455]
[1761919717905,0.001,3876.5,3876.4,4.33974263]
[1761919718700,0.0002,3876.5,3876.4,4.33974263]
[1761919719065,0.0002,3876.5,3876.4,3.8517455]
[1761919719270,0.0002,3876.5,3876.4,3.75271026]
[1761919720815,0.0002,3876.5,3876.4,2.60551026]
[1761919720975,0.0002,3876.5,3876.4,3.09971026]
[1761919721179,0.0002,3876.5,3876.4,3.56191026]
[1761919721510,0.0002,3876.5,3876.4,3.09971026]
[1761919721714,0.0002,3876.5,3876.4,3.56191026]
[1761919721883,0.0002,3876.5,3876.1,0.1908]
[1761919721884,0.0002,3876.5,3876.3,2.60557658]
[1761919722214,0.0002,3876.5,3876.4,3.07391313]
[1761919722376,0.0002,3876.5,3876.4,4.16936345]
[1761919723410,0.0002,3876.5,3876.4,3.70716345]
[1761919724339,0.0002,3876.5,3876.2,2.57984624]
[1761919724488,0.0035,3876.3,3875.5,2.58026016]
[1761919724690,0.0002,3876.5,3875.2,0.48800511]
[1761919724886,0.0002,3876.5,3876.2,2.57979802]
[1761919725088,0.0002,3876.5,3876.4,2.57971313]
[1761919725611,0.0002,3876.5,3876.4,3.07391313]
[1761919725813,0.3534,3876.5,3876.4,2.57971313]
[1761919726112,0.0002,3876.5,3876.4,2.57971313]
[1761919727381,0.0002,3876.5,3876.4,3.09971026]
[1761919727586,0.0002,3876.5,3876.4,4.3620426]
[1761919727892,0.0002,3876.5,3875.7,2.77092275]
[1761919727893,0.0002,3876.5,3876.0,2.57997936]
[1761919728093,0.0002,3876.5,3876.4,2.57971313]
[1761919728509,0.0002,3876.5,3876.4,3.53611313]
[1761919729523,0.0052,3876.7,3876.6,3.97926004]
[1761919729524,1e-08,3876.7,3876.6,3.97926004]
[1761919729826,1e-08,3876.7,3876.6,5.68977707]
[1761919730186,1e-08,3876.7,3876.6,3.95669707]
[1761919730383,1e-08,3876.7,3875.7,0.1908]
[1761919730384,1e-08,3876.7,3876.5,2.57963153]
[1761919730631,0.1288,3876.5,3875.8,0.488]
[1761919731003,0.2702,3875.9,3875.3,0.002]
[1761919731222,0.0754,3875.9,3875.8,2.58011249]
[1761919731399,1e-08,3876.7,3876.0,0.002]
[1761919731616,2.85090953,3876.7,3876.0,0.002]
[1761919731926,0.27137848,3876.7,3876.0,0.002]
[1761919732117,0.27137848,3876.7,3876.0,2.58191755]
[1761919732314,1e-08,3876.7,3876.0,2.5819578]
[1761919732529,1e-08,3876.7,3876.0,0.002]
[1761919732530,0.3532,3876.1,3876.0,0.002]
[1761919732844,0.1948,3876.6,3876.0,0.002]
[1761919733534,1e-08,3876.7,3876.0,0.02779979]
[1761919734306,1e-08,3876.7,3876.1,2.76308347]
[1761919734508,1e-08,3876.7,3876.4,2.57966151]
[1761919734697,1e-08,3876.7,3876.5,0.02579646]
[1761919734900,1e-08,3876.7,3876.1,0.1832]
[1761919735097,1e-08,3876.7,3876.2,2.57984624]
[1761919735343,1e-08,3876.7,3876.3,2.57977617]
[1761919735662,1e-08,3876.7,3876.0,0.002]
[1761919736127,1e-08,3876.7,3876.2,2.57984352]
[1761919736330,1e-08,3876.7,3876.3,0.02579779]
[1761919736839,1e-08,3876.7,3876.4,0.02579713]
[1761919737026,1e-08,3876.7,3876.4,2.57969755]
[1761919737221,1e-08,3876.7,3876.5,0.02579646]
[1761919737766,1e-08,3876.7,3876.4,2.57965619]
[1761919738263,1e-08,3876.7,3876.5,0.02579646]
[1761919738448,1e-08,3876.7,3876.6,2.57958004]
[1761919739461,1e-08,3876.7,3876.5,0.02579646]
[1761919739970,1e-08,3876.7,3876.1,0.488]
[1761919740127,1e-08,3876.7,3876.3,2.579719]
[1761919740331,1e-08,3876.7,3876.1,3.06789497]
[1761919740633,1e-08,3876.7,3876.2,2.57979322]
[1761919740834,1e-08,3876.7,3876.2,2.57983055]
[1761919741039,0.1288,3876.2,3876.0,0.002]
[1761919741764,0.1288,3876.2,3876.1,2.57991279]
[1761919741968,0.1288,3876.2,3876.0,2.58195936]
[1761919742129,0.1948,3876.1,3876.0,0.002]
[1761919742333,3.53181679,3876.1,3876.0,0.002]
[1761919742562,4.14298145,3876.1,3876.0,0.002]
[1761919743582,10.43826245,3876.1,3876.0,0.002]
[1761919743742,10.43746245,3876.1,3876.0,0.002]
[1761919744288,11.83714245,3876.1,3876.0,0.002]
[1761919744577,35.54186145,3876.1,3876.0,0.002]
[1761919744732,18.99553445,3876.1,3876.0,0.002]
[1761919744929,19.40040038,3876.1,3876.0,0.002]
[1761919745640,17.00575738,3876.1,3876.0,0.002]
[1761919745834,8.61867845,3876.1,3876.0,0.002]
[1761919746027,4.14143443,3876.1,3876.0,0.002]
[1761919746227,10.65461277,3876.1,3876.0,0.002]
[1761919746567,11.94178379,3876.1,3876.0,0.002]
[1761919746741,11.40578379,3876.1,3876.0,0.002]
[1761919747132,13.21096779,3876.1,3876.0,0.002]
[1761919747335,0.40473251,3876.4,3876.0,0.4988]
[1761919747646,1e-08,3876.7,3876.0,0.002]
[1761919747964,0.1956,3876.1,3876.0,0.002]
[1761919748131,0.5464,3876.1,3876.0,0.002]
[1761919748332,0.951904,3876.1,3876.0,0.002]
[1761919749067,0.1956,3876.1,3876.0,0.002]
[1761919749449,0.951904,3876.1,3876.0,0.002]
[1761919749849,0.1966,3876.1,3876.0,0.002]
[1761919750052,1e-08,3876.7,3876.6,2.57958004]
[1761919750253,1e-08,3876.7,3876.6,4.91721804]
[1761919750469,1e-08,3876.7,3876.6,0.2837538]
[1761919750671,1e-08,3876.7,3876.3,0.1832]
[1761919751146,1e-08,3876.7,3876.4,2.57966112]
[1761919751346,1e-08,3876.7,3876.3,0.6712]
[1761919751674,1e-08,3876.7,3876.6,2.57958004]
[1761919751970,1e-08,3876.7,3876.4,3.09349854]
[1761919752274,1e-08,3876.7,3876.5,0.81566985]
[1761919752437,1e-08,3876.7,3876.0,0.002]
[1761919752438,0.3524,3876.5,3876.0,0.002]
[1761919752641,0.759904,3876.4,3876.0,0.002]
[1761919752842,1e-08,3876.7,3876.0,0.002]
[1761919753038,0.40550401,3876.7,3876.0,0.002]
[1761919753873,0.405504,3876.5,3876.0,0.002]
[1761919754044,0.35240001,3876.7,3876.0,0.002]
[1761919754249,3.33742689,3876.7,3876.0,0.002]
[1761919754451,0.405504,3876.5,3876.0,0.002]
[1761919754648,0.757904,3876.1,3876.0,0.002]
[1761919754972,8.07772679,3876.1,3876.0,0.002]
[1761919755172,9.35863834,3876.1,3876.0,0.002]
[1761919755545,14.82926534,3876.1,3876.0,0.002]
[1761919755769,14.29326534,3876.1,3876.0,0.002]
[1761919756153,11.71335255,3876.1,3876.0,0.002]
[1761919756348,2.03881555,3876.1,3876.0,0.002]
[1761919756562,0.953504,3876.1,3876.0,0.002]
[1761919756749,14.12267979,3876.1,3876.0,0.002]
[1761919757080,0.953504,3876.1,3876.0,0.002]
[1761919758171,3.53341679,3876.1,3876.0,0.002]
[1761919758382,17.30141979,3876.1,3876.0,0.002]
[1761919758580,19.33001352,3876.1,3876.0,0.002]
[1761919759379,26.19209506,3875.7,3875.6,0.002]
[1761919759570,32.4919091,3875.7,3875.6,0.002]
[1761919759767,32.8443091,3875.7,3875.6,0.002]
[1761919760246,34.38556279,3875.4,3875.3,0.002]
[1761919760564,36.16592599,3875.4,3875.3,0.002]
[1761919760779,36.51832599,3875.4,3875.3,0.002]
[1761919761098,36.21631474,3875.4,3875.3,0.002]
[1761919761462,35.07960774,3875.4,3875.3,0.002]
[1761919761662,22.44926174,3875.4,3875.3,0.002]
[1761919762473,0.10349275,3875.4,3875.3,0.002]
[1761919762797,0.0754,3875.9,3875.3,0.002]
[1761919763155,2.65545141,3875.9,3875.3,0.002]
[1761919763393,0.405504,3875.8,3875.3,0.002]
[1761919763898,0.81032089,3875.8,3875.3,0.002]
[1761919764196,0.34658254,3875.7,3875.3,0.002]
[1761919764567,0.81032089,3875.8,3875.3,0.002]
[1761919764767,0.601104,3875.4,3875.3,0.002]
[1761919764991,2.000784,3875.4,3875.3,0.002]
[1761919765187,7.24468979,3875.4,3875.3,0.002]
[1761919765505,2.98626043,3874.9,3874.6,0.002]
[1761919765714,23.111375,3874.7,3874.6,0.002]
[1761919765914,28.555776,3874.7,3874.6,0.002]
[1761919766122,23.37964,3874.7,3874.6,0.002]
[1761919767021,38.4178464,3874.7,3874.6,0.002]
[1761919767303,31.53470994,3874.7,3874.6,0.002]
[1761919767507,29.66995394,3874.7,3874.6,0.002]
[1761919767910,14.36586038,3874.7,3874.6,0.002]
[1761919768097,44.36586038,3874.7,3874.6,0.002]
[1761919768293,43.46995938,3874.7,3874.6,0.002]
[1761919768617,29.98242638,3874.7,3874.6,0.002]
[1761919769104,39.01310538,3874.7,3874.6,0.002]
[1761919770074,38.04183452,3874.7,3874.6,0.002]
[1761919770274,13.87840693,3874.7,3874.6,0.002]
[1761919770500,13.6046925,3874.7,3874.6,0.002]
[1761919770808,2.9865488,3874.4,3874.2,0.002]
[1761919771105,41.69158823,3874.4,3874.2,0.002]
[1761919771286,42.03268823,3874.4,3874.2,0.002]
[1761919772699,4.38629542,3874.3,3874.2,0.002]
[1761919772897,34.91919542,3874.3,3874.2,0.002]
[1761919773208,30.21446396,3874.3,3874.2,0.002]
[1761919773408,4.38702846,3873.2,3873.1,0.007]
[1761919773615,4.38702846,3873.2,3872.1,0.005]
[1761919773616,33.68101613,3872.8,3872.2,0.1834]
[1761919773776,2.5816042,3873.6,3872.2,0.1834]
[1761919773777,0.405504,3874.1,3872.3,0.02782444]
[1761919773977,2.98761513,3872.8,3872.3,0.002]
[1761919774188,13.76159313,3872.8,3872.3,0.002]
[1761919774400,4.977616,3872.8,3872.3,0.002]
[1761919774601,20.91982113,3872.8,3872.3,0.002]
[1761919774808,20.90112713,3872.8,3872.3,0.002]
[1761919775010,23.56692367,3872.8,3872.3,0.002]
[1761919775597,37.54540667,3872.8,3872.3,0.002]
[1761919775804,28.73445567,3872.8,3872.3,0.002]
[1761919776188,26.88450467,3872.8,3872.3,0.002]
[1761919776717,37.54540667,3872.8,3872.3,0.002]
[1761919776952,18.18164867,3872.8,3872.3,0.002]
[1761919777240,6.767401,3872.8,3872.3,0.002]
[1761919777533,1.39968,3873.1,3872.4,0.4874]
[1761919777819,3.98164824,3873.1,3872.4,0.4874]
[1761919777976,0.405504,3872.9,3872.4,0.4874]
[1761919778178,2.98756474,3872.9,3872.4,0.4874]
[1761919778413,2.58209707,3872.9,3872.4,0.4874]
[1761919778614,0.405504,3872.8,3872.4,0.4874]
[1761919779001,0.405504,3872.8,3872.3,0.002]
[1761919779316,2.98752316,3873.0,3872.7,0.4759]
[1761919779317,0.405504,3873.0,3872.7,0.4759]
[1761919779978,0.405504,3872.8,3872.7,0.4759]
[1761919780393,0.405504,3872.9,3872.7,0.4759]
[1761919780587,0.405504,3872.9,3872.8,0.4739]
[1761919780814,2.58184446,3873.2,3872.7,0.002]
[1761919781040,0.405504,3872.9,3872.7,0.002]
[1761919781719,26.94824613,3872.8,3872.7,0.002]
[1761919781905,24.36744913,3872.8,3872.7,0.002]
[1761919782100,23.59243313,3872.8,3872.7,0.002]
[1761919782704,0.40514753,3873.4,3872.7,0.4759]
[1761919782906,0.40514753,3873.4,3873.3,0.4739]
[1761919783104,0.18,3874.3,3873.3,0.4739]
[1761919783305,14.929772,3874.1,3873.1,0.1834]
[1761919783535,13.291995,3873.9,3873.1,0.1834]
[1761919783837,16.832091,3874.2,3873.1,0.1834]
[1761919784040,1.57428199,3874.3,3873.1,0.1834]
[1761919784041,3.475887,3874.1,3873.1,0.6708]
[1761919784358,0.92008199,3874.3,3873.2,0.02581844]
[1761919784504,0.40504704,3874.5,3874.2,0.6573]
[1761919784914,0.405504,3874.4,3874.2,0.6573]
[1761919785316,1.80472704,3874.5,3874.2,0.6573]
[1761919785546,4.38570534,3874.5,3874.2,0.6573]
[1761919785709,0.405504,3874.4,3874.2,0.6573]
[1761919788012,2.58132219,3874.0,3873.3,0.4874]
[1761919788222,0.405504,3874.1,3873.5,0.1834]
[1761919788415,2.98689565,3873.9,3873.1,0.1834]
[1761919788745,0.405504,3873.7,3873.1,0.1834]
[1761919789247,0.405504,3873.7,3873.1,0.6708]
[1761919789813,0.405504,3873.8,3873.1,0.6708]
[1761919790019,2.9869878,3873.8,3873.1,0.6708]
[1761919790221,0.405504,3873.7,3873.1,0.6708]
[1761919791737,2.98701523,3873.7,3873.1,0.6708]
[1761919791935,0.405504,3873.7,3872.7,0.002]
[1761919792118,0.405504,3873.0,3872.7,0.002]
[1761919792313,2.98761513,3872.8,3872.7,0.002]
[1761919792531,3.58512635,3872.8,3872.7,0.002]
[1761919792727,1.00301522,3872.8,3872.7,0.002]
[1761919792929,3.58512635,3872.8,3872.7,0.002]
[1761919793115,19.86041835,3872.8,3872.7,0.002]
[1761919793322,1.00301522,3872.8,3872.7,0.002]
[1761919793515,2.98761513,3872.8,3872.7,0.002]
[1761919793715,0.81065219,3872.8,3872.7,0.002]
[1761919793916,0.81065219,3872.8,3872.7,0.4722]
[1761919794351,0.404704,3872.8,3872.7,0.4722]
[1761919794520,6.03159813,3872.8,3872.7,0.002]
[1761919794727,18.77600209,3872.8,3872.7,0.002]
[1761919795254,20.17568209,3872.8,3872.7,0.002]
[1761919795855,31.04171209,3872.8,3872.7,0.002]
[1761919796155,25.58441894,3872.8,3872.7,0.002]
[1761919796355,24.82632794,3872.8,3872.7,0.002]
[1761919796758,35.68884194,3872.8,3872.7,0.002]
[1761919796963,24.99085194,3872.8,3872.7,0.002]
[1761919797856,30.58802394,3872.8,3872.7,0.002]
[1761919798056,28.89215794,3872.8,3872.7,0.002]
[1761919798661,28.48705809,3872.8,3872.7,0.002]
[1761919798965,36.75919963,3872.8,3872.7,0.002]
[1761919799342,29.43770663,3872.8,3872.7,0.002]
[1761919800061,7.42484867,3872.8,3872.7,0.002]
[1761919800269,7.88604867,3872.8,3872.7,0.002]
[1761919800471,2.45808768,3872.8,3872.7,3.0543778]
[1761919800750,0.005,3874.7,3872.7,0.9597]
[1761919800953,2.58105368,3874.4,3872.8,0.4875]
[1761919801270,2.58123392,3874.2,3872.8,3.0695646]
[1761919801445,1.39968,3874.2,3872.8,0.4875]
[1761919801644,1.39968,3874.1,3872.8,0.4875]
[1761919801844,2.298777,3874.0,3872.8,0.4875]
[1761919802060,2.58129477,3874.1,3872.8,0.4875]
[1761919802061,2.58129584,3874.1,3872.8,0.4875]
[1761919802365,7.17721587,3874.3,3872.8,0.4875]
[1761919802366,2.58113866,3874.3,3872.9,0.33318904]
[1761919802587,0.001,3874.5,3874.0,0.1859]
[1761919802732,0.001,3874.5,3874.2,0.4702]
[1761919802933,3.437775,3874.4,3874.0,0.1859]
[1761919803168,11.959322,3874.1,3873.2,0.4875]
[1761919803389,0.405504,3873.8,3873.4,0.1859]
[1761919803740,0.405504,3873.7,3873.4,0.1859]
[1761919803939,0.405504,3873.6,3873.4,0.1859]
[1761919804193,0.001,3873.8,3873.0,0.1859]
[1761919804489,0.001,3873.8,3873.7,0.4702]
[1761919804980,0.001,3873.8,3873.7,0.9577]
[1761919805678,0.001,3873.8,3873.7,3.89315135]
[1761919806048,0.001,3873.8,3873.7,5.31864646]
[1761919806256,0.001,3873.8,3873.7,2.35738]
[1761919806667,0.001,3873.8,3873.7,4.93889121]
[1761919807187,0.001,3874.2,3874.1,2.58124467]
[1761919807356,0.001,3874.5,3874.1,2.58124467]
[1761919807357,0.001,3874.5,3874.4,3.9807248]
[1761919807554,0.001,3874.5,3874.4,4.96423524]
[1761919807753,0.001,3874.5,3874.4,5.73736183]
[1761919807957,0.001,3874.5,3874.4,5.71155139]
[1761919808677,0.001,3874.5,3874.4,12.1513835]
[1761919809480,0.001,3874.9,3874.8,2.58077836]
[1761919809677,0.001,3874.9,3874.8,4.47646614]
[1761919809877,0.001,3874.9,3874.8,5.71844935]
[1761919810090,0.001,3874.9,3874.8,5.69264157]
[1761919811920,0.001,3874.9,3874.8,1.71218321]
[1761919812128,0.001,3874.9,3874.8,0.9577]
[1761919812428,0.001,3874.9,3874.8,2.35738]
[1761919812626,0.001,3874.9,3874.8,0.9577]
[1761919814400,0.001,3874.9,3874.8,0.4702]
[1761919814794,0.001,3874.9,3874.8,0.9577]
[1761919818588,0.001,3874.9,3874.8,2.85379407]
[1761919818786,0.1298,3874.9,3874.8,0.9577]
[1761919819034,0.1298,3874.9,3874.8,0.4702]
[1761919819321,0.405504,3874.8,3874.1,0.1859]
[1761919819644,0.1288,3874.1,3873.3,0.1859]
[1761919819926,0.1288,3874.1,3872.6,0.002]
[1761919819927,0.1288,3873.3,3872.6,0.002]
[1761919820125,0.4829,3873.9,3872.6,0.002]
[1761919820434,1.39968,3874.5,3874.0,0.4799]
[1761919820587,0.001,3874.9,3874.8,0.4799]
[1761919820785,0.001,3874.9,3874.8,0.9656]
[1761919821023,0.001,3874.9,3873.6,6.43983211]
[1761919821024,0.001,3874.9,3874.4,0.6145]
[1761919821228,0.001,3874.9,3874.8,1.87958]
[1761919821388,0.001,3874.9,3874.8,2.35142956]
[1761919821719,0.1298,3874.9,3874.8,5.38510792]
[1761919821911,0.1298,3874.9,3874.8,5.35930014]
[1761919822089,0.001,3874.9,3874.8,5.35930014]
[1761919826009,0.006,3875.7,3874.8,5.35930014]
[1761919826010,0.34592402,3876.5,3876.4,2.57971313]
[1761919826330,0.005,3877.7,3876.4,1.84105131]
[1761919826530,0.005,3877.7,3876.6,0.4964]
[1761919826691,0.005,3877.7,3876.6,0.9493]
[1761919826894,0.005,3877.7,3876.8,1.39968]
[1761919827202,0.005,3877.7,3876.0,0.1976]
[1761919827203,0.4507,3876.9,3876.0,0.1976]
[1761919827402,0.4722,3877.7,3876.0,0.1976]
[1761919827403,0.4722,3877.7,3876.1,0.02579912]
[1761919827913,0.32513893,3877.6,3876.1,0.02579912]
[1761919828231,0.405504,3877.3,3876.1,0.02579912]
[1761919828440,2.5789813,3877.5,3876.0,0.1976]
[1761919828592,0.405504,3877.4,3876.0,0.1976]
[1761919828791,0.405504,3877.3,3876.0,0.1976]
[1761919829028,0.405504,3877.3,3876.0,0.02579979]
[1761919829029,2.57934217,3877.0,3876.0,0.02579979]
[1761919829338,0.66343822,3876.9,3876.0,0.02579979]
[1761919829495,0.405504,3876.7,3876.0,0.02579979]
[1761919830097,0.405504,3876.7,3875.9,0.02580045]
[1761919831136,0.405504,3876.7,3875.6,0.1976]
[1761919831137,0.405504,3876.7,3875.7,0.02580179]
[1761919831291,0.405504,3877.2,3875.7,0.02580179]
[1761919831493,0.405504,3876.7,3875.7,0.02580179]
[1761919831794,3.34493652,3877.1,3875.7,0.02580179]
[1761919831795,0.405504,3877.0,3875.7,0.02580179]
[1761919831992,0.405504,3877.0,3875.7,0.47870179]
[1761919832243,0.1288,3875.8,3875.7,0.47870179]
[1761919832589,0.1288,3875.8,3875.7,0.97510179]
[1761919832819,0.1288,3875.8,3875.7,2.37478179]
[1761919833004,0.1288,3875.8,3875.7,0.97510179]
[1761919833594,0.1288,3875.8,3875.7,2.37478179]
[1761919834431,0.40459809,3877.6,3876.9,2.57938043]
[1761919834649,0.006,3877.8,3877.0,0.02579313]
[1761919834827,0.006,3877.8,3877.1,0.1274]
[1761919834994,0.1288,3877.6,3877.0,0.1288]
[1761919835194,0.4672,3877.6,3876.0,0.4529]
[1761919835394,0.1288,3877.3,3876.8,2.57938713]
[1761919835592,0.1288,3877.3,3877.0,2.5793139]
[1761919835824,0.1288,3877.3,3876.9,1.4254738]
[1761919835825,0.1288,3877.3,3877.2,0.6238]
[1761919836006,0.1288,3877.3,3877.2,2.0492718]
[1761919836394,0.1288,3877.3,3877.2,0.6495918]
[1761919836601,0.1288,3877.3,3877.2,4.99662119]
[1761919836912,0.006,3877.8,3877.3,1.39968]
[1761919837102,0.1288,3877.5,3877.4,0.02579047]
[1761919837307,0.1288,3877.5,3877.4,2.60481567]
[1761919837508,0.1288,3877.5,3877.4,3.10121567]
[1761919837705,0.1288,3877.5,3877.4,3.90407018]
[1761919837904,0.1288,3877.5,3877.4,2.72472498]
[1761919838107,0.1288,3877.5,3877.4,0.52219047]
[1761919838535,0.1288,3877.5,3877.4,3.10123828]
[1761919838906,0.1298,3877.5,3877.4,3.10123828]
[1761919839228,0.1298,3877.5,3877.4,4.50091828]
[1761919839601,0.1298,3877.5,3877.4,1.92187047]
[1761919839802,0.1298,3877.5,3876.9,0.1288]
[1761919840118,0.001,3877.5,3877.0,1.39968]
[1761919840300,0.1288,3877.3,3877.0,2.57930022]
[1761919840501,0.1288,3877.3,3877.0,3.26076847]
[1761919840807,0.4672,3878.0,3877.0,3.26076847]
[1761919840808,0.40455175,3880.8,3877.2,6.29660194]
[1761919841010,0.4722,3879.7,3878.6,1.39968]
[1761919841405,0.005,3879.7,3878.6,1.39968]
[1761919841619,0.1944,3878.9,3878.6,1.39968]